fUST/lending_fUST_20250701
["ID","MTS","AMOUNT","RATE_DAILY","PERIOD"]
[368780006,1751363451005,-460.0,0.00019079,2]
[368780007,1751363451014,-460.0,0.00019079,2]
[368780008,1751363451024,-460.0,0.00019079,2]
[368780009,1751363451033,-460.0,0.00019079,2]
[368780010,1751363451042,-1552.26,0.00019079,2]
[368780011,1751363451051,-460.0,0.00019079,2]
[368780012,1751363451061,-460.0,0.00019079,2]
[368780013,1751363451071,-1767.48,0.00019079,2]
[368780014,1751363451080,-460.0,0.00019079,2]
[368780015,1751363451091,-460.0,0.00019079,2]
[368780016,1751363451100,-460.0,0.00019079,2]
[368780017,1751363451112,-1866.06,0.00019079,2]
[368780018,1751363451121,-460.0,0.00019079,2]
[368780019,1751363451130,-151.0,0.00019079,2]
[368780020,1751363451139,-460.0,0.00019079,2]
[368780021,1751363451149,-460.0,0.00019079,2]
[368780022,1751363451158,-1119.17,0.00019079,2]
[368780023,1751363451168,-585.13,0.00019079,2]
[368780024,1751363451176,-151.0,0.00019079,2]
[368780025,1751363451186,-460.0,0.00019079,2]
[368780026,1751363451208,-460.0,0.00019079,2]
[368780027,1751363451218,-460.0,0.00019079,2]
[368780028,1751363451228,-151.0,0.00019079,2]
[368780029,1751363451238,-460.0,0.00019079,2]
[368780030,1751363451247,-460.0,0.00019079,2]
[368780031,1751363451256,-460.0,0.00019079,2]
[368780032,1751363451266,-582.95,0.00019079,2]
[368780033,1751363451276,-460.0,0.00019079,2]
[368780034,1751363451287,-460.0,0.00019079,2]
[368780035,1751363451298,-460.0,0.00019079,2]
[368780036,1751363451308,-460.0,0.00019079,2]
[368780037,1751363451318,-460.0,0.00019079,2]
[368780038,1751363451328,-460.0,0.0001908,2]
[368780039,1751363451338,-151.0,0.0001908,2]
[368780040,1751363451349,-151.0,0.0001908,2]
[368780041,1751363451359,-460.0,0.0001908,2]
[368780042,1751363451368,-469.32,0.0001908,2]
[368780043,1751363451377,-460.0,0.0001908,2]
[368780044,1751363451386,-151.0,0.0001908,2]
[368780045,1751363451396,-151.0,0.0001908,2]
[368780046,1751363451406,-151.0,0.0001908,2]
[368780047,1751363451415,-151.0,0.0001908,2]
[368780048,1751363451424,-460.0,0.0001908,2]
[368780049,1751363451433,-151.0,0.0001908,2]
[368780050,1751363451445,-158.250518,0.0001908,2]
[368780051,1751363451454,-151.0,0.0001908,2]
[368780052,1751363451463,-460.0,0.0001908,2]
[368780053,1751363451474,-460.0,0.0001908,2]
[368780054,1751363451483,-460.0,0.0001908,2]
[368780055,1751363451493,-460.0,0.0001908,2]
[368780056,1751363451503,-2546.94,0.0001908,2]
[368780057,1751363451512,-460.0,0.0001908,2]
[368780058,1751363451522,-727.96,0.0001908,2]
[368780059,1751363451531,-608.33617136,0.00019141,2]
[368780060,1751363451541,-829.39955635,0.00019154,2]
[368780061,1751363451551,-460.0,0.0001917,2]
[368780062,1751363451560,-460.0,0.0001917,2]
[368780063,1751363451571,-460.0,0.0001917,2]
[368780064,1751363451581,-460.0,0.0001917,2]
[368780065,1751363451591,-460.0,0.0001917,2]
[368780066,1751363451600,-460.0,0.0001917,2]
[368780067,1751363451610,-460.0,0.0001917,2]
[368780068,1751363451619,-151.0,0.0001917,2]
[368780069,1751363451628,-460.0,0.0001917,2]
[368780070,1751363451637,-460.0,0.0001917,2]
[368780071,1751363451647,-561.2896447,0.0001917,2]
[368780072,1751363451656,-460.0,0.0001917,2]
[368780073,1751363451665,-460.0,0.0001917,2]
[368780074,1751363451675,-151.0,0.0001917,2]
[368780075,1751363451684,-151.0,0.0001917,2]
[368780076,1751363451693,-222.989582,0.0001917,2]
[368780077,1751363451703,-151.0,0.0001917,2]
[368780078,1751363451712,-222.989582,0.0001917,2]
[368780079,1751363451721,-460.0,0.0001917,2]
[368780080,1751363451731,-460.0,0.0001917,2]
[368780081,1751363451740,-191.957885,0.0001917,2]
[368780082,1751363451749,-191.957885,0.0001917,2]
[368780083,1751363451759,-151.0,0.0001917,2]
[368780084,1751363451768,-550.8,0.0001917,2]
[368780085,1751363451777,-460.0,0.0001917,2]
[368780086,1751363451787,-460.0,0.0001917,2]
[368780087,1751363451796,-460.0,0.0001917,2]
[368780088,1751363451805,-460.0,0.0001917,2]
[368780089,1751363451815,-2968.01,0.00019171,2]
[368780090,1751363451824,-842.61,0.00019171,2]
[368780091,1751363451834,-460.0,0.00019171,2]
[368780092,1751363451843,-460.0,0.00019177,2]
[368780093,1751363451853,-151.0,0.00019177,2]
[368780094,1751363451862,-151.0,0.00019177,2]
[368780095,1751363451871,-252.689177,0.00019177,2]
[368780096,1751363451880,-252.689177,0.00019177,2]
[368780097,1751363451889,-177.11346123,0.00019177,2]
[368780098,1751363451899,-460.0,0.00019177,2]
[368780099,1751363451909,-474.98,0.00019177,2]
[368780100,1751363451922,-598.6,0.00019177,2]
[368780101,1751363451932,-935.82,0.00019177,2]
[368780102,1751363451941,-460.0,0.00019177,2]
[368780103,1751363451953,-460.0,0.00019177,2]
[368780104,1751363451963,-460.0,0.00019177,2]
[368780105,1751363451972,-460.0,0.00019177,2]
[368780106,1751363451982,-1539.79,0.00019177,2]
[368780107,1751363451993,-2209.86,0.00019177,2]
[368780108,1751363452003,-460.0,0.00019177,2]
[368780109,1751363452013,-1177.83,0.00019177,2]
[368780110,1751363452023,-151.0,0.00019178,2]
[368780111,1751363452032,-151.0,0.00019178,2]
[368780112,1751363452042,-151.0,0.00019178,2]
[368780113,1751363452053,-151.0,0.00019178,2]
[368780114,1751363452063,-183.580611,0.00019178,2]
[368780115,1751363452072,-183.580611,0.00019178,2]
[368780116,1751363452082,-151.0,0.00019178,2]
[368780117,1751363452093,-854.447483,0.00019178,2]
[368780118,1751363452102,-854.447483,0.00019178,2]
[368780119,1751363452111,-151.0,0.00019178,2]
[368780120,1751363452120,-196.0915788,0.00019178,2]
[368780121,1751363452130,-302.512581,0.00019178,2]
[368780122,1751363452139,-151.0,0.00019179,2]
[368780123,1751363452149,-460.0,0.00019179,2]
[368780124,1751363452159,-151.0,0.00019179,2]
[368780125,1751363452168,-151.0,0.00019179,2]
[368780126,1751363452179,-514.45,0.00019179,2]
[368780127,1751363452188,-460.0,0.00019179,2]
[368780128,1751363452211,-460.0,0.00019179,2]
[368780129,1751363452220,-460.0,0.00019179,2]
[368780130,1751363452230,-460.0,0.00019179,2]
[368780131,1751363452239,-460.0,0.00019179,2]
[368780132,1751363452249,-474.69,0.00019179,2]
[368780133,1751363452258,-460.0,0.00019181,2]
[368780134,1751363452269,-151.0,0.00019181,2]
[368780135,1751363452279,-460.0,0.00019181,2]
[368780136,1751363452288,-151.0,0.000192,2]
[368780137,1751363452300,-151.0,0.000192,2]
[368780138,1751363452311,-249.0,0.0001922,2]
[368780139,1751363452320,-168.74373069,0.00019229,2]
[368780140,1751363452329,-2360.583657,0.00019253,2]
[368780141,1751363452339,-460.0,0.00019279,2]
[368780142,1751363452348,-151.0,0.00019279,2]
[368780143,1751363452357,-151.0,0.00019279,2]
[368780144,1751363452366,-420.0,0.00019326,2]
[368780145,1751363452376,-151.0,0.00019327,2]
[368780146,1751363452386,-64455.15551004,0.00019329,2]
[368780147,1751363452397,-151.0,0.00019329,2]
[368780148,1751363452406,-151.0,0.00019329,2]
[368780149,1751363452416,-151.0,0.00019329,2]
[368780150,1751363452505,-151.0,0.00019329,2]
[368780151,1751363452516,-151.0,0.00019329,2]
[368780152,1751363452526,-151.0,0.00019329,2]
[368780153,1751363452535,-284.109259,0.00019329,2]
[368780154,1751363452545,-151.0,0.00019329,2]
[368780155,1751363452556,-151.0,0.00019329,2]
[368780156,1751363452565,-151.0,0.00019329,2]
[368780157,1751363452575,-151.0,0.00019329,2]
[368780158,1751363452585,-151.0,0.00019329,2]
[368780159,1751363452594,-151.0,0.00019329,2]
[368780160,1751363452604,-252.689177,0.00019329,2]
[368780161,1751363452614,-252.689177,0.00019329,2]
[368780162,1751363452623,-151.0,0.00019329,2]
[368780163,1751363452633,-183.580611,0.00019329,2]
[368780164,1751363452643,-183.580611,0.00019329,2]
[368780165,1751363452653,-151.0,0.00019329,2]
[368780166,1751363452663,-854.447483,0.00019329,2]
[368780167,1751363452673,-854.447483,0.00019329,2]
[368780168,1751363452683,-151.0,0.00019329,2]
[368780169,1751363452693,-151.0,0.00019329,2]
[368780170,1751363452704,-230.187499,0.00019329,2]
[368780171,1751363452713,-151.0,0.00019329,2]
[368780172,1751363452722,-151.0,0.00019329,2]
[368780173,1751363452732,-154.422424,0.00019329,2]
[368780174,1751363452741,-151.0,0.00019329,2]
[368780175,1751363452751,-222.989582,0.00019329,2]
[368780176,1751363452760,-151.0,0.00019329,2]
[368780177,1751363452769,-222.989582,0.00019329,2]
[368780178,1751363452779,-191.957885,0.00019329,2]
[368780179,1751363452788,-191.957885,0.00019329,2]
[368780180,1751363452797,-151.0,0.00019329,2]
[368780181,1751363452809,-151.0,0.00019329,2]
[368780182,1751363452819,-151.0,0.00019329,2]
[368780183,1751363452828,-151.0,0.00019329,2]
[368780184,1751363452838,-151.0,0.00019329,2]
[368780185,1751363452848,-176.470104,0.00019329,2]
[368780186,1751363452857,-151.0,0.00019329,2]
[368780187,1751363452867,-151.0,0.00019329,2]
[368780188,1751363452876,-151.0,0.00019329,2]
[368780189,1751363452885,-151.0,0.00019329,2]
[368780190,1751363452895,-151.0,0.00019329,2]
[368780191,1751363452904,-151.0,0.00019329,2]
[368780192,1751363452917,-151.0,0.00019329,2]
[368780193,1751363452926,-151.0,0.00019329,2]
[368780194,1751363452936,-151.0,0.00019329,2]
[368780195,1751363452945,-151.0,0.00019329,2]
[368780196,1751363452955,-84249.84594083,0.00019329,2]
[368780197,1751363452965,-411.84,0.00019352,2]
[368780198,1751363452975,-460.0,0.00019352,2]
[368780199,1751363452987,-1323.74,0.00019352,2]
[368780200,1751363452996,-460.0,0.00019352,2]
[368780201,1751363453006,-151.0,0.00019353,2]
[368780202,1751363453015,-460.0,0.00019353,2]
[368780203,1751363453024,-283.92105927,0.00019353,2]
[368780204,1751363453035,-1590.5,0.00019353,2]
[368780205,1751363453043,-460.0,0.00019353,2]
[368780206,1751363453052,-460.0,0.00019353,2]
[368780207,1751363453062,-1192.21,0.00019353,2]
[368780208,1751363453071,-460.0,0.00019353,2]
[368780209,1751363453080,-460.0,0.00019353,2]
[368780210,1751363453089,-460.0,0.00019353,2]
[368780211,1751363453099,-460.0,0.00019353,2]
[368780212,1751363453108,-460.0,0.00019353,2]
[368780213,1751363453118,-460.0,0.00019353,2]
[368780214,1751363453128,-1552.26,0.00019353,2]
[368780215,1751363453137,-460.0,0.00019353,2]
[368780216,1751363453147,-460.0,0.00019353,2]
[368780217,1751363453157,-460.0,0.00019353,2]
[368780218,1751363453166,-1767.48,0.00019353,2]
[368780219,1751363453176,-460.0,0.00019353,2]
[368780220,1751363453184,-330.71554263,0.00019353,2]
[368780221,1751363453194,-1866.06,0.00019353,2]
[368780222,1751363453205,-460.0,0.00019353,2]
[368780223,1751363453215,-460.0,0.00019353,2]
[368780224,1751363453224,-460.0,0.00019353,2]
[368780225,1751363453235,-1119.17,0.00019353,2]
[368780226,1751363453245,-585.13,0.00019353,2]
[368780227,1751363453255,-460.0,0.00019353,2]
[368780228,1751363453264,-460.0,0.00019353,2]
[368780229,1751363453274,-460.0,0.00019353,2]
[368780230,1751363453284,-460.0,0.00019353,2]
[368780231,1751363453294,-582.95,0.00019353,2]
[368780232,1751363453303,-460.0,0.00019353,2]
[368780233,1751363453313,-460.0,0.00019353,2]
[368780234,1751363453323,-460.0,0.00019353,2]
[368780235,1751363453332,-460.0,0.00019353,2]
[368780236,1751363453342,-460.0,0.00019353,2]
[368780237,1751363453351,-460.0,0.00019354,2]
[368780238,1751363453361,-214.67,0.00019354,2]
[368780239,1751363453370,-460.0,0.00019354,2]
[368780240,1751363453379,-460.0,0.00019354,2]
[368780241,1751363453389,-460.0,0.00019354,2]
[368780242,1751363453399,-460.0,0.00019354,2]
[368780243,1751363453408,-2546.94,0.00019354,2]
[368780244,1751363453419,-460.0,0.00019354,2]
[368780245,1751363453428,-727.96,0.00019354,2]
[368780246,1751363453437,-500.0,0.00019373,2]
[368780247,1751363453447,-500.0,0.00019373,2]
[368780248,1751363453457,-500.0,0.00019373,2]
[368780249,1751363453467,-500.0,0.00019373,2]
[368780250,1751363453477,-500.0,0.00019373,2]
[368780251,1751363453486,-500.9058487,0.00019373,2]
[368780252,1751363453495,-441.94601656,0.00019373,2]
[368780253,1751363453505,-500.0,0.00019373,2]
[368780254,1751363453515,-500.0,0.00019373,2]
[368780255,1751363453525,-167.46898346,0.00019373,2]
[368780256,1751363453535,-500.0,0.00019373,2]
[368780257,1751363453544,-423.65100897,0.00019373,2]
[368780258,1751363453554,-500.0,0.00019373,2]
[368780259,1751363453564,-360.00832558,0.00019373,2]
[368780260,1751363453573,-500.3360567,0.00019373,2]
[368780261,1751363453583,-500.0,0.00019373,2]
[368780262,1751363453593,-484.85022,0.00019373,2]
[368780263,1751363453602,-172.32907732,0.00019373,2]
[368780264,1751363453612,-500.0,0.00019373,2]
[368780265,1751363453621,-501.5397799,0.00019373,2]
[368780266,1751363453631,-500.70631354,0.00019373,2]
[368780267,1751363453641,-500.35336161,0.00019373,2]
[368780268,1751363453652,-500.43541712,0.00019373,2]
[368780269,1751363453662,-500.0,0.00019373,2]
[368780270,1751363453672,-500.0,0.00019373,2]
[368780271,1751363453681,-500.0,0.00019373,2]
[368780272,1751363453691,-503.93424813,0.00019373,2]
[368780273,1751363453700,-500.0,0.00019373,2]
[368780274,1751363453709,-161.05583858,0.00019373,2]
[368780275,1751363453719,-500.0,0.00019373,2]
[368780276,1751363453728,-500.0,0.00019373,2]
[368780277,1751363453737,-500.42572882,0.00019373,2]
[368780278,1751363453747,-500.0,0.00019373,2]
[368780279,1751363453756,-249.0,0.00019373,2]
[368780280,1751363453766,-608.33617136,0.00019383,2]
[368780281,1751363453775,-151.0,0.000194,2]
[368780282,1751363453785,-168.0,0.00019406,2]
[368780283,1751363453795,-249.0,0.0001941,2]
[368780284,1751363453804,-249.0,0.00019421,2]
[368780285,1751363453813,-500.0,0.00019435,2]
[368780286,1751363453822,-151.0,0.00019435,2]
[368780287,1751363453832,-151.0,0.00019435,2]
[368780288,1751363453841,-151.0,0.00019435,2]
[368780289,1751363453850,-222.989582,0.00019435,2]
[368780290,1751363453860,-151.0,0.00019435,2]
[368780291,1751363453871,-222.989582,0.00019435,2]
[368780292,1751363453881,-151.0,0.00019435,2]
[368780293,1751363453890,-460.0,0.00019444,2]
[368780294,1751363453899,-460.0,0.00019444,2]
[368780295,1751363453910,-460.0,0.00019444,2]
[368780296,1751363453920,-460.0,0.00019444,2]
[368780297,1751363453930,-460.0,0.00019444,2]
[368780298,1751363453940,-460.0,0.00019444,2]
[368780299,1751363453951,-460.0,0.00019444,2]
[368780300,1751363453960,-460.0,0.00019444,2]
[368780301,1751363453969,-460.0,0.00019444,2]
[368780302,1751363453979,-460.0,0.00019444,2]
[368780303,1751363453988,-460.0,0.00019444,2]
[368780304,1751363453998,-460.0,0.00019444,2]
[368780305,1751363454008,-460.0,0.00019444,2]
[368780306,1751363454017,-460.0,0.00019444,2]
[368780307,1751363454026,-460.0,0.00019444,2]
[368780308,1751363454036,-460.0,0.00019444,2]
[368780309,1751363454045,-2968.01,0.00019445,2]
[368780310,1751363454054,-842.61,0.00019445,2]
[368780311,1751363454063,-304.53521825,0.00019451,2]
[368780312,1751363454073,-460.0,0.00019451,2]
[368780313,1751363454082,-598.6,0.00019451,2]
[368780314,1751363454169,-935.82,0.00019451,2]
[368780315,1751363454179,-460.0,0.00019451,2]
[368780316,1751363454188,-460.0,0.00019451,2]
[368780317,1751363454198,-460.0,0.00019451,2]
[368780318,1751363454207,-460.0,0.00019451,2]
[368780319,1751363454217,-1539.79,0.00019451,2]
[368780320,1751363454226,-2209.86,0.00019451,2]
[368780321,1751363454237,-460.0,0.00019451,2]
[368780322,1751363454246,-1177.83,0.00019451,2]
[368780323,1751363454256,-460.0,0.00019453,2]
[368780324,1751363454266,-514.45,0.00019453,2]
[368780325,1751363454276,-484.68266673,0.00019453,2]
[368780326,1751363454286,-607.58,0.00019453,2]
[368780327,1751363454296,-460.0,0.00019453,2]
[368780328,1751363454305,-460.0,0.00019453,2]
[368780329,1751363454315,-460.0,0.00019455,2]
[368780330,1751363454324,-460.0,0.00019455,2]
[368780331,1751363454334,-200.11115445,0.000195,2]
[368780332,1751363454343,-460.0,0.00019553,2]
[368780333,1751363454353,-391.0,0.00019563,2]
[368780334,1751363454362,-249.0,0.00019581,2]
[368780335,1751363454371,-5000.0,0.00019586,2]
[368780336,1751363454380,-207.4,0.00019586,2]
[368780337,1751363454390,-151.0,0.00019586,2]
[368780338,1751363454399,-500.0,0.00019586,2]
[368780339,1751363454408,-690.642,0.00019586,2]
[368780340,1751363454418,-500.0,0.00019586,2]
[368780341,1751363454427,-298.60925501,0.00019586,2]
[368780342,1751363454436,-500.0,0.00019586,2]
[368780343,1751363454445,-500.0,0.00019586,2]
[368780344,1751363454455,-500.0,0.00019586,2]
[368780345,1751363454464,-500.0,0.00019586,2]
[368780346,1751363454473,-500.0,0.00019586,2]
[368780347,1751363454482,-500.0,0.00019586,2]
[368780348,1751363454492,-500.0,0.00019586,2]
[368780349,1751363454501,-500.0,0.00019586,2]
[368780350,1751363454511,-500.0,0.00019586,2]
[368780351,1751363454521,-500.0,0.00019586,2]
[368780352,1751363454530,-500.0,0.00019586,2]
[368780353,1751363454540,-500.0,0.00019586,2]
[368780354,1751363454549,-500.0,0.00019586,2]
[368780355,1751363454559,-500.0,0.00019586,2]
[368780356,1751363454568,-500.0,0.00019586,2]
[368780357,1751363454578,-500.0,0.00019586,2]
[368780358,1751363454588,-500.0,0.00019586,2]
[368780359,1751363454598,-561.88688042,0.00019586,2]
[368780360,1751363454607,-500.0,0.00019586,2]
[368780361,1751363454617,-500.0,0.00019586,2]
[368780362,1751363454627,-500.0,0.00019586,2]
[368780363,1751363454637,-500.0,0.00019586,2]
[368780364,1751363454647,-500.0,0.00019586,2]
[368780365,1751363454656,-25000.0,0.00019586,2]
[368780366,1751363454666,-500.0,0.00019586,2]
[368780367,1751363454675,-13303.65022967,0.00019586,2]
[368780368,1751363454685,-500.0,0.00019586,2]
[368780369,1751363454694,-500.0,0.00019586,2]
[368780370,1751363454704,-151.0,0.00019586,2]
[368780371,1751363454713,-151.0,0.00019586,2]
[368780372,1751363454722,-151.0,0.00019586,2]
[368780373,1751363454732,-151.0,0.00019586,2]
[368780374,1751363454741,-151.0,0.00019586,2]
[368780375,1751363454751,-151.0,0.00019586,2]
[368780376,1751363454760,-151.0,0.00019586,2]
[368780377,1751363454770,-252.689177,0.00019586,2]
[368780378,1751363454780,-252.689177,0.00019586,2]
[368780379,1751363454789,-151.0,0.00019586,2]
[368780380,1751363454799,-183.580611,0.00019586,2]
[368780381,1751363454808,-183.580611,0.00019586,2]
[368780382,1751363454818,-151.0,0.00019586,2]
[368780383,1751363454827,-151.0,0.00019586,2]
[368780384,1751363454836,-854.447483,0.00019586,2]
[368780385,1751363454845,-854.447483,0.00019586,2]
[368780386,1751363454855,-151.0,0.00019586,2]
[368780387,1751363454864,-151.0,0.00019586,2]
[368780388,1751363454874,-157.334981,0.00019586,2]
[368780389,1751363454883,-222.989582,0.00019586,2]
[368780390,1751363454893,-151.0,0.00019586,2]
[368780391,1751363454903,-222.989582,0.00019586,2]
[368780392,1751363454916,-191.957885,0.00019586,2]
[368780393,1751363454925,-191.957885,0.00019586,2]
[368780394,1751363454935,-151.0,0.00019586,2]
[368780395,1751363454945,-151.0,0.00019586,2]
[368780396,1751363454955,-151.0,0.00019586,2]
[368780397,1751363454964,-272.341792,0.00019586,2]
[368780398,1751363454973,-151.0,0.00019586,2]
[368780399,1751363454985,-151.0,0.00019586,2]
[368780400,1751363454995,-151.0,0.00019586,2]
[368780401,1751363455004,-151.0,0.00019586,2]
[368780402,1751363455013,-153.0,0.00019594,2]
[368780403,1751363455023,-159.291355,0.00019594,2]
[368780404,1751363455034,-575.3123006,0.00019594,2]
[368780405,1751363455044,-177.5384831,0.00019594,2]
[368780406,1751363455055,-177.5384831,0.00019594,2]
[368780407,1751363455065,-159.3450821,0.00019597,2]
[368780408,1751363455075,-306.0,0.00019597,2]
[368780409,1751363455084,-177.5971231,0.00019597,2]
[368780410,1751363455094,-153.0,0.00019597,2]
[368780411,1751363455103,-575.5050994,0.00019597,2]
[368780412,1751363455113,-159.3450821,0.00019597,2]
[368780413,1751363455123,-153.0,0.00019597,2]
[368780414,1751363455132,-159.3450821,0.00019597,2]
[368780415,1751363455142,-153.0,0.00019597,2]
[368780416,1751363455152,-159.3450821,0.00019597,2]
[368780417,1751363455161,-153.0,0.00019597,2]
[368780418,1751363455171,-153.0,0.00019597,2]
[368780419,1751363455181,-159.3450821,0.00019597,2]
[368780420,1751363455191,-159.3450821,0.00019597,2]
[368780421,1751363455201,-575.5050994,0.00019597,2]
[368780422,1751363455211,-159.3450821,0.00019597,2]
[368780423,1751363455220,-575.5050994,0.00019597,2]
[368780424,1751363455230,-575.5050994,0.00019597,2]
[368780425,1751363455239,-159.0855542,0.00019597,2]
[368780426,1751363455249,-575.5050994,0.00019597,2]
[368780427,1751363455258,-575.5050994,0.00019597,2]
[368780428,1751363455268,-177.5971231,0.00019597,2]
[368780429,1751363455278,-159.291355,0.00019597,2]
[368780430,1751363455288,-177.5971231,0.00019597,2]
[368780431,1751363455297,-575.5050994,0.00019597,2]
[368780432,1751363455308,-1149.9636375,0.00019597,2]
[368780433,1751363455318,-177.5971231,0.00019597,2]
[368780434,1751363455328,-177.5971231,0.00019597,2]
[368780435,1751363455338,-1150.2600633,0.00019597,2]
[368780436,1751363455348,-575.3123006,0.00019597,2]
[368780437,1751363455357,-177.5971231,0.00019597,2]
[368780438,1751363455367,-177.5971231,0.00019597,2]
[368780439,1751363455376,-354.8711907,0.00019597,2]
[368780440,1751363455387,-608.33617136,0.00019624,2]
[368780441,1751363455396,-158.64043712,0.00019626,2]
[368780442,1751363455406,-1323.74,0.00019626,2]
[368780443,1751363455416,-460.0,0.00019626,2]
[368780444,1751363455426,-472.27,0.00019627,2]
[368780445,1751363455436,-1590.5,0.00019627,2]
[368780446,1751363455446,-460.0,0.00019627,2]
[368780447,1751363455457,-460.0,0.00019627,2]
[368780448,1751363455466,-1192.21,0.00019627,2]
[368780449,1751363455476,-460.0,0.00019627,2]
[368780450,1751363455486,-460.0,0.00019627,2]
[368780451,1751363455496,-460.0,0.00019627,2]
[368780452,1751363455506,-366.81677723,0.00019627,2]
[368780453,1751363455515,-460.0,0.00019627,2]
[368780454,1751363455525,-460.0,0.00019627,2]
[368780455,1751363455535,-1552.26,0.00019627,2]
[368780456,1751363455545,-460.0,0.00019627,2]
[368780457,1751363455555,-460.0,0.00019627,2]
[368780458,1751363455564,-460.0,0.00019627,2]
[368780459,1751363455574,-1767.48,0.00019627,2]
[368780460,1751363455585,-460.0,0.00019627,2]
[368780461,1751363455596,-1866.06,0.00019627,2]
[368780462,1751363455605,-460.0,0.00019627,2]
[368780463,1751363455614,-460.0,0.00019627,2]
[368780464,1751363455624,-460.0,0.00019627,2]
[368780465,1751363455705,-1119.17,0.00019627,2]
[368780466,1751363455714,-585.13,0.00019627,2]
[368780467,1751363455725,-460.0,0.00019627,2]
[368780468,1751363455735,-169.29,0.00019627,2]
[368780469,1751363455744,-460.0,0.00019627,2]
[368780470,1751363455754,-460.0,0.00019627,2]
[368780471,1751363455763,-582.95,0.00019627,2]
[368780472,1751363455773,-460.0,0.00019627,2]
[368780473,1751363455783,-460.0,0.00019627,2]
[368780474,1751363455792,-460.0,0.00019627,2]
[368780475,1751363455801,-460.0,0.00019627,2]
[368780476,1751363455811,-528.59,0.00019627,2]
[368780477,1751363455821,-460.0,0.00019628,2]
[368780478,1751363455830,-495.5,0.00019628,2]
[368780479,1751363455839,-460.0,0.00019628,2]
[368780480,1751363455849,-460.0,0.00019628,2]
[368780481,1751363455858,-460.0,0.00019628,2]
[368780482,1751363455867,-2546.94,0.00019628,2]
[368780483,1751363455878,-460.0,0.00019628,2]
[368780484,1751363455887,-727.96,0.00019628,2]
[368780485,1751363455897,-716.195754,0.00019641,2]
[368780486,1751363455908,-742.6949969,0.00019696,2]
[368780487,1751363455921,-173.56956223,0.00019718,2]
[368780488,1751363455932,-460.0,0.00019718,2]
[368780489,1751363455942,-460.0,0.00019718,2]
[368780490,1751363455953,-460.0,0.00019718,2]
[368780491,1751363455962,-460.0,0.00019718,2]
[368780492,1751363455972,-349.04883824,0.00019718,2]
[368780493,1751363455981,-460.0,0.00019718,2]
[368780494,1751363455991,-460.0,0.00019718,2]
[368780495,1751363456002,-460.0,0.00019718,2]
[368780496,1751363456012,-460.0,0.00019718,2]
[368780497,1751363456023,-460.0,0.00019718,2]
[368780498,1751363456035,-460.0,0.00019718,2]
[368780499,1751363456045,-460.0,0.00019718,2]
[368780500,1751363456055,-460.0,0.00019718,2]
[368780501,1751363456065,-460.0,0.00019718,2]
[368780502,1751363456074,-151.0,0.00019719,2]
[368780503,1751363456084,-2968.01,0.00019719,2]
[368780504,1751363456095,-842.61,0.00019719,2]
[368780505,1751363456104,-460.0,0.00019725,2]